[Event "ROU-ch Open 2021"]
[Site "Iasi"]
[Date "2021.04.22"]
[Round "5.11"]
[White "Ciorgovean, Iustin"]
[Black "Albu, George"]
[Result "1-0"]
[ECO "E97"]
[WhiteElo "2338"]
[BlackElo "2050"]
[Annotator "ChessBase"]
[PlyCount "137"]
[EventDate "2021.04.19"]
[EventType "swiss"]
[EventCountry "ROU"]
[SourceTitle "playchess.com"]
[Source "ChessBase"]
[SourceQuality "1"]
[TimeControl "5400+30"]

1. d4 {[%emt 0:00:00]} Nf6 {[%emt 0:07:47]} 2. c4 {[%emt 0:00:00]} g6 {[%emt 0:00:11]} 3. Nc3 {[%emt 0:00:00]} Bg7 {[%emt 0:00:04]} 4. e4 {[%emt 0:00:00]} d6 {[%emt 0:00:03]} 5. Nf3 {[%emt 0:00:00]} O-O {[%emt 0:00:06]} 6. Be2 {[%emt 0:00:00]} e5 {[%emt 0:00:06]} 7. O-O {[%emt 0:00:03]} Nc6 {[%emt 0:00:04]} 8. d5 {[%emt 0:00:04]} Ne7 {[%emt 0:00:05]} 9. b4 {[%emt 0:00:05]} Nh5 {[%emt 0:00:20]} 10. a4 {[%emt 0:00:05]} f5 {[%emt 0:00:08]} 11. c5 {[%emt 0:00:46]} fxe4 {[%emt 0:00:09]} 12. Ng5 {[%emt 0:02:08]} Nf4 {[%emt 0:02:23]} 13. Bc4 {[%emt 0:04:49]} Kh8 {[%emt 0:21:20]} 14. Ngxe4 {[%emt 0:05:31]} Nf5 {[%emt 0:03:33]} 15. Ra2 {[%emt 0:09:05]} Nh4 {[%emt 0:22:24]} 16. f3 {[%emt 0:05:10]} g5 {[%emt 0:03:45]} 17. a5 {[%emt 0:14:09]} Rg8 {[%emt 0:08:43]} 18. Kh1 {[%emt 0:12:07]} g4 {[%emt 0:08:53]} 19. fxg4 {[%emt 0:18:59]} Bh6 {[%emt 0:14:09]} 20. g5 {[%emt 0:05:31]} Bxg5 {[%emt 0:01:45]} 21. Nxg5 {[%emt 0:03:49]} Qxg5 {[%emt 0:00:06]} 22. Bxf4 {[%emt 0:00:38]} exf4 {[%emt 0:00:46]} 23. Qd4+ {[%emt 0:00:23]} Rg7 {[%emt 0:01:38]} 24. Qxf4 {[%emt 0:01:34]} Qxf4 {[%emt 0:00:33]} 25. Rxf4 {[%emt 0:00:08]} Ng6 {[%emt 0:00:04]} 26. Rf1 {[%emt 0:00:57]} Bd7 {[%emt 0:02:38]} 27. a6 {[%emt 0:02:12]} b5 {[%emt 0:01:02]} 28. Bxb5 {[%emt 0:01:35]} dxc5 {[%emt 0:00:38]} 29. bxc5 {[%emt 0:00:12]} Rb8 {[%emt 0:00:22]} 30. c6 {[%emt 0:00:52]} Be8 {[%emt 0:00:31]} 31. Re2 {[%emt 0:01:06]} Bf7 {[%emt 0:00:18]} 32. Rf5 {[%emt 0:01:37]} Nh4 {[%emt 0:00:34]} 33. Rfe5 {[%emt 0:00:11]} Ng6 {[%emt 0:00:18]} 34. Rf5 {[%emt 0:02:46]} Nh4 {[%emt 0:00:10]} 35. Rf4 {[%emt 0:00:06]} Ng6 {[%emt 0:01:02]} 36. Rd4 {[%emt 0:00:07]} Rgg8 {[%emt 0:00:32]} 37. h3 {[%emt 0:00:17]} Rgd8 {[%emt 0:00:14]} 38. Bc4 {[%emt 0:00:43]} Kg7 {[%emt 0:00:19]} 39. Bd3 {[%emt 0:02:00]} Rb6 {[%emt 0:00:41]} 40. Kh2 {[%emt 0:00:29]} Rxc6 {[%emt 0:00:52]} 41. dxc6 {[%emt 0:01:16]} Rxd4 {[%emt 0:00:04]} 42. Bxg6 {[%emt 0:01:29]} Kxg6 {[%emt 0:00:20]} 43. Nb5 {[%emt 0:00:45]} Ra4 {[%emt 0:00:55]} 44. Rc2 {[%emt 0:06:09]} Rxa6 {[%emt 0:00:45]} 45. Nxc7 {[%emt 0:00:04]} Rb6 {[%emt 0:00:09]} 46. Rc5 {[%emt 0:00:16]} a6 {[%emt 0:00:37]} 47. Kg3 {[%emt 0:01:31]} Kf6 {[%emt 0:00:30]} 48. Kf4 {[%emt 0:00:41]} Rb4+ {[%emt 0:00:21]} 49. Ke3 {[%emt 0:00:17]} Rb3+ {[%emt 0:00:19]} 50. Kd4 {[%emt 0:00:14]} Rb4+ {[%emt 0:00:04]} 51. Kc3 {[%emt 0:00:26]} Rb3+ {[%emt 0:00:04]} 52. Kd4 {[%emt 0:01:09]} Rb4+ {[%emt 0:00:04]} 53. Kd3 {[%emt 0:00:12]} Rb2 {[%emt 0:01:30]} 54. Nd5+ {[%emt 0:01:14]} Ke5 {[%emt 0:01:19]} 55. Ne3+ {[%emt 0:00:46]} Kd6 {[%emt 0:00:24]} 56. c7 {[%emt 0:00:09]} Be6 {[%emt 0:00:06]} 57. c8=Q {[%emt 0:00:04]} Bxc8 {[%emt 0:00:26]} 58. Rxc8 {[%emt 0:00:04]} Rb7 {[%emt 0:00:50]} 59. Ra8 {[%emt 0:00:19]} Ke5 {[%emt 0:00:27]} 60. Rxa6 {[%emt 0:00:12]} Kf4 {[%emt 0:00:08]} 61. Ra4+ {[%emt 0:00:22]} Kg3 {[%emt 0:00:15]} 62. Rg4+ {[%emt 0:00:17]} Kf2 {[%emt 0:00:08]} 63. Nd5 {[%emt 0:00:33]} Ra7 {[%emt 0:00:53]} 64. Ke4 {[%emt 0:00:44]} Ra4+ {[%emt 0:00:43]} 65. Kf5 {[%emt 0:00:14]} Ra5 {[%emt 0:00:04]} 66. Ke6 {[%emt 0:00:21]} Ra6+ {[%emt 0:00:34]} 67. Kf7 {[%emt 0:00:24]} Ra7+ {[%emt 0:00:16]} 68. Kf6 {[%emt 0:00:17]} Rb7 {[%emt 0:00:09]} 69. h4 {[%emt 0:00:23]} 1-0

[Event "ROU-ch Open 2021"]
[Site "Iasi"]
[Date "2021.04.22"]
[Round "5.12"]
[White "Ognean, Mihnea-Ionut"]
[Black "Sarighioleanu, Sebastian-Laurentiu"]
[Result "1-0"]
[ECO "B41"]
[WhiteElo "2298"]
[BlackElo "1902"]
[Annotator "ChessBase"]
[PlyCount "89"]
[EventDate "2021.04.19"]
[EventType "swiss"]
[EventCountry "ROU"]
[SourceTitle "playchess.com"]
[Source "ChessBase"]
[SourceQuality "1"]
[TimeControl "5400+30"]

1. e4 {[%emt 0:00:00]} c5 {[%emt 0:00:00]} 2. Nf3 {[%emt 0:00:00]} e6 {[%emt 0:00:00]} 3. d4 {[%emt 0:00:19]} cxd4 {[%emt 0:00:07]} 4. Nxd4 {[%emt 0:00:04]} a6 {[%emt 0:00:21]} 5. c4 {[%emt 0:00:20]} Nf6 {[%emt 0:00:46]} 6. Nc3 {[%emt 0:00:09]} Qc7 {[%emt 0:00:25]} 7. a3 {[%emt 0:00:14]} b6 {[%emt 0:00:44]} 8. Be3 {[%emt 0:00:30]} Bb7 {[%emt 0:00:41]} 9. f3 {[%emt 0:00:06]} d6 {[%emt 0:02:28]} 10. Qd2 {[%emt 0:01:09]} Be7 {[%emt 0:01:20]} 11. Be2 {[%emt 0:00:21]} O-O {[%emt 0:01:14]} 12. O-O {[%emt 0:00:34]} Nbd7 {[%emt 0:00:57]} 13. b4 {[%emt 0:00:24]} Rac8 {[%emt 0:04:02]} 14. Rac1 {[%emt 0:00:25]} Rfe8 {[%emt 0:01:44]} 15. Rc2 {[%emt 0:01:38]} Qb8 {[%emt 0:07:05]} 16. Kh1 {[%emt 0:01:35]} Ne5 {[%emt 0:15:00]} 17. Na4 {[%emt 0:02:17]} Nfd7 {[%emt 0:03:02]} 18. Rb1 {[%emt 0:05:12]} Ba8 {[%emt 0:10:02]} 19. Qc1 {[%emt 0:01:41]} Bb7 {[%emt 0:14:26]} 20. Nb3 {[%emt 0:14:23]} Bc6 {[%emt 0:06:28]} 21. Nb2 {[%emt 0:01:15]} h5 {[%emt 0:01:48]} 22. a4 {[%emt 0:06:21]} Bd8 {[%emt 0:03:13]} 23. b5 {[%emt 0:06:55]} Bb7 {[%emt 0:02:18]} 24. a5 {[%emt 0:00:08]} axb5 {[%emt 0:03:03]} 25. cxb5 {[%emt 0:01:30]} Rxc2 {[%emt 0:04:08]} 26. Qxc2 {[%emt 0:00:03]} bxa5 {[%emt 0:00:19]} 27. Na4 {[%emt 0:01:18]} h4 {[%emt 0:04:27]} 28. b6 {[%emt 0:07:40]} Qa8 {[%emt 0:01:02]} 29. Nd4 {[%emt 0:03:11]} h3 {[%emt 0:01:35]} 30. Nb5 {[%emt 0:00:49]} hxg2+ {[%emt 0:01:10]} 31. Kxg2 {[%emt 0:07:39]} f5 {[%emt 0:06:12]} 32. Nxd6 {[%emt 0:01:32]} fxe4 {[%emt 0:00:09]} 33. f4 {[%emt 0:00:08]} Rf8 {[%emt 0:03:38]} 34. fxe5 {[%emt 0:00:29]} Bg5 {[%emt 0:01:37]} 35. Bxg5 {[%emt 0:24:44]} e3+ {[%emt 0:00:00]} 36. Kg3 {[%emt 0:00:06]} Rf2 {[%emt 0:01:42]} 37. Qc7 {[%emt 0:00:06]} Rg2+ {[%emt 0:00:35]} 38. Kh3 {[%emt 0:00:04]} Kh7 {[%emt 0:00:38]} 39. Qxb7 {[%emt 0:01:48]} Qf8 {[%emt 0:00:02]} 40. Qxg2 {[%emt 0:00:31]} Nxe5 {[%emt 0:00:20]} 41. Qe4+ {[%emt 0:00:31]} Ng6 {[%emt 0:00:43]} 42. Bd3 {[%emt 0:00:58]} Kg8 {[%emt 0:00:01]} 43. Qxe6+ {[%emt 0:00:13]} Kh8 {[%emt 0:00:01]} 44. Nf7+ {[%emt 0:00:53]} Kg8 {[%emt 0:00:01]} 45. Ne5+ {[%emt 0:00:20]} 1-0

[Event "ROU-ch Open 2021"]
[Site "Iasi"]
[Date "2021.04.22"]
[Round "5.13"]
[White "Ambru, Dan-Calin"]
[Black "Tocan, Cristian"]
[Result "1-0"]
[ECO "A27"]
[WhiteElo "1990"]
[BlackElo "2236"]
[Annotator "ChessBase"]
[PlyCount "59"]
[EventDate "2021.04.19"]
[EventType "swiss"]
[EventCountry "ROU"]
[SourceTitle "playchess.com"]
[Source "ChessBase"]
[SourceQuality "1"]
[TimeControl "5400+30"]

1. Nf3 {[%emt 0:06:56]} Nc6 {[%emt 0:00:00]} 2. c4 {[%emt 0:00:25]} e5 {[%emt 0:00:36]} 3. Nc3 {[%emt 0:00:35]} Bc5 {[%emt 0:00:41]} 4. e3 {[%emt 0:03:24]} d6 {[%emt 0:01:47]} 5. a3 {[%emt 0:01:38]} a5 {[%emt 0:00:34]} 6. Be2 {[%emt 0:02:33]} Bg4 {[%emt 0:05:47]} 7. h3 {[%emt 0:03:04]} Bh5 {[%emt 0:02:26]} 8. O-O {[%emt 0:02:33]} Nf6 {[%emt 0:06:10]} 9. d4 {[%emt 0:01:03]} e4 {[%emt 0:11:28]} 10. Nd2 {[%emt 0:03:11]} Bxe2 {[%emt 0:01:23]} 11. Qxe2 {[%emt 0:00:19]} Ba7 {[%emt 0:01:26]} 12. Ncxe4 {[%emt 0:02:55]} Nxe4 {[%emt 0:00:31]} 13. Nxe4 {[%emt 0:00:04]} O-O {[%emt 0:00:30]} 14. b3 {[%emt 0:00:30]} Re8 {[%emt 0:04:50]} 15. Qf3 {[%emt 0:06:02]} Qh4 {[%emt 0:00:30]} 16. Nc3 {[%emt 0:00:30]} Bxd4 {[%emt 0:00:30]} 17. exd4 {[%emt 0:00:30]} Nxd4 {[%emt 0:00:30]} 18. Qd1 {[%emt 0:03:43]} Re6 {[%emt 0:10:22]} 19. Be3 {[%emt 0:04:08]} Nf5 {[%emt 0:02:27]} 20. Qf3 {[%emt 0:01:37]} g6 {[%emt 0:05:28]} 21. Nd5 {[%emt 0:04:37]} Rc8 {[%emt 0:01:54]} 22. g4 {[%emt 0:10:01]} Ng7 {[%emt 0:03:30]} 23. Bd4 {[%emt 0:04:16]} f5 {[%emt 0:01:32]} 24. Bf6 {[%emt 0:05:26]} Rxf6 {[%emt 0:08:52]} 25. Ne7+ {[%emt 0:00:22]} Kh8 {[%emt 0:00:11]} 26. Nxc8 {[%emt 0:00:05]} Rf8 {[%emt 0:00:29]} 27. Na7 {[%emt 0:05:50]} Ne6 {[%emt 0:01:19]} 28. Nb5 {[%emt 0:06:47]} h5 {[%emt 0:05:41]} 29. Qg3 {[%emt 0:01:40]} Qf6 {[%emt 0:01:16]} 30. Qc3 {[%emt 0:01:27]} 1-0

[Event "ROU-ch Open 2021"]
[Site "Iasi"]
[Date "2021.04.23"]
[Round "6.16"]
[White "Stepanencu, Nicodim-Cosmin"]
[Black "Gheorghiu, Calin"]
[Result "1-0"]
[ECO "C07"]
[WhiteElo "2104"]
[BlackElo "2283"]
[Annotator "RC"]
[PlyCount "43"]
[EventDate "2021.04.19"]
[EventType "swiss"]
[EventCountry "ROU"]
[SourceTitle "playchess.com"]
[Source "ChessBase"]
[SourceQuality "1"]
[TimeControl "5400+30"]

1. e4 {[%emt 0:00:00]} e6 {[%emt 0:01:40]} 2. d4 {[%emt 0:00:00]} d5 {[%emt 0:00:04]} 3. Nd2 {[%emt 0:00:00]} c5 {[%emt 0:01:36]} 4. exd5 {[%emt 0:00:00]} Qxd5 {[%emt 0:00:04]} 5. dxc5 {[%emt 0:00:00]} Nf6 {[%emt 0:00:39]} 6. Ngf3 {[%emt 0:00:06]} Qxc5 {[%emt 0:00:59]} 7. Bd3 {[%emt 0:00:14]} Be7 {[%emt 0:00:31]} 8. O-O {[%emt 0:06:13]} O-O {[%emt 0:00:22]} 9. Nb3 {[%emt 0:03:51]} Qc7 {[%emt 0:00:14]} 10. a4 {[%emt 0:00:09]} Nc6 {[%emt 0:01:56]} 11. c3 {[%emt 0:03:50]} b6 {[%emt 0:03:46]} 12. Bg5 {[%emt 0:09:28]} Bb7 {[%emt 0:00:40]} 13. Qe2 {[%emt 0:00:21]} h6 {[%emt 0:03:51]} 14. Bh4 {[%emt 0:01:22]} Nh5 {[%emt 0:03:29]} 15. Qe4 {[%emt 0:41:49]} g6 {[%emt 0:01:51]} 16. Qg4 {[%emt 0:00:19]} Bxh4 {[%emt 0:06:32]} 17. Qxh4 {[%emt 0:00:46]} Rad8 {[%emt 0:24:00]} 18. Be4 {[%emt 0:06:42]} Qf4 {[%emt 0:17:12]} 19. Qxf4 {[%emt 0:08:48]} Nxf4 {[%emt 0:00:09]} 20. Rad1 {[%emt 0:10:01]} f5 {[%emt 0:10:40]} 21. Bxc6 {[%emt 0:02:19]} Bxc6 {[%emt 0:00:02]} 22. Nbd4 {[%emt 0:00:18]} 1-0

[Event "ROU-ch Open 2021"]
[Site "Iasi"]
[Date "2021.04.23"]
[Round "7.7"]
[White "Gavrilescu, David"]
[Black "Nanu, Costica-Ciprian"]
[Result "1/2-1/2"]
[ECO "B10"]
[WhiteElo "2476"]
[BlackElo "2503"]
[Annotator "ChessBase"]
[PlyCount "93"]
[EventDate "2021.04.19"]
[EventType "swiss"]
[EventCountry "ROU"]
[SourceTitle "playchess.com"]
[Source "ChessBase"]
[SourceQuality "1"]
[TimeControl "5400+30"]

1. e4 {[%emt 0:00:00]} c6 {[%emt 0:00:01]} 2. Nf3 {[%emt 0:00:00]} d5 {[%emt 0:00:05]} 3. d3 {[%emt 0:00:13]} dxe4 {[%emt 0:01:01]} 4. dxe4 {[%emt 0:00:06]} Qxd1+ {[%emt 0:00:07]} 5. Kxd1 {[%emt 0:00:04]} Bg4 {[%emt 0:01:46]} 6. Be2 {[%emt 0:00:18]} Nd7 {[%emt 0:01:37]} 7. Ne1 {[%emt 0:00:40]} Bxe2+ {[%emt 0:01:47]} 8. Kxe2 {[%emt 0:00:02]} Nc5 {[%emt 0:05:02]} 9. f3 {[%emt 0:02:49]} e5 {[%emt 0:02:03]} 10. Be3 {[%emt 0:00:54]} Nf6 {[%emt 0:01:34]} 11. Nd2 {[%emt 0:02:53]} Nfd7 {[%emt 0:00:20]} 12. Nc4 {[%emt 0:05:54]} f6 {[%emt 0:02:16]} 13. Rd1 {[%emt 0:06:46]} O-O-O {[%emt 0:09:34]} 14. Nd6+ {[%emt 0:03:07]} Bxd6 {[%emt 0:00:11]} 15. Rxd6 {[%emt 0:00:04]} Kc7 {[%emt 0:01:01]} 16. Rd2 {[%emt 0:06:52]} Ne6 {[%emt 0:06:26]} 17. Nd3 {[%emt 0:00:00]} Nb6 {[%emt 0:01:38]} 18. b3 {[%emt 0:02:55]} Nd4+ {[%emt 0:04:20]} 19. Kd1 {[%emt 0:02:12]} Ne6 {[%emt 0:04:27]} 20. a4 {[%emt 0:07:31]} Nc8 {[%emt 0:00:26]} 21. c3 {[%emt 0:02:55]} b6 {[%emt 0:02:22]} 22. Kc2 {[%emt 0:04:05]} Ne7 {[%emt 0:07:26]} 23. Ra1 {[%emt 0:08:09]} c5 {[%emt 0:02:54]} 24. a5 {[%emt 0:06:54]} Nc6 {[%emt 0:00:16]} 25. axb6+ {[%emt 0:00:34]} axb6 {[%emt 0:00:04]} 26. Nb2 {[%emt 0:00:16]} Rxd2+ {[%emt 0:00:22]} 27. Bxd2 {[%emt 0:00:32]} Na5 {[%emt 0:04:25]} 28. g3 {[%emt 0:08:22]} Kb7 {[%emt 0:02:45]} 29. f4 {[%emt 0:04:24]} exf4 {[%emt 0:00:34]} 30. gxf4 {[%emt 0:00:06]} Re8 {[%emt 0:01:25]} 31. Re1 {[%emt 0:04:35]} g6 {[%emt 0:02:21]} 32. h4 {[%emt 0:08:32]} Ng7 {[%emt 0:01:06]} 33. b4 {[%emt 0:00:44]} cxb4 {[%emt 0:00:52]} 34. cxb4 {[%emt 0:00:04]} Nc6 {[%emt 0:00:42]} 35. Bc3 {[%emt 0:02:08]} Nh5 {[%emt 0:01:25]} 36. Nc4 {[%emt 0:02:07]} Rd8 {[%emt 0:03:30]} 37. e5 {[%emt 0:01:48]} Nd4+ {[%emt 0:00:51]} 38. Bxd4 {[%emt 0:02:43]} Rxd4 {[%emt 0:00:02]} 39. Kc3 {[%emt 0:02:06]} Rxf4 {[%emt 0:00:12]} 40. e6 {[%emt 0:00:21]} Ng7 {[%emt 0:00:24]} 41. e7 {[%emt 0:00:13]} Ne8 {[%emt 0:00:24]} 42. Rd1 {[%emt 0:00:26]} Rf3+ {[%emt 0:00:23]} 43. Kc2 {[%emt 0:00:23]} Rf2+ {[%emt 0:00:57]} 44. Kb3 {[%emt 0:00:08]} Rf3+ {[%emt 0:00:52]} 45. Kb2 {[%emt 0:03:23]} Rf2+ {[%emt 0:01:59]} 46. Kb3 {[%emt 0:01:06]} Rf3+ {[%emt 0:00:22]} 47. Kb2 {[%emt 0:02:45]} 1/2-1/2

[Event "ROU-ch Open 2021"]
[Site "Iasi"]
[Date "2021.04.23"]
[Round "7.9"]
[White "Jianu, Vlad-Cristian"]
[Black "Coca, Cristi-Iulian"]
[Result "1-0"]
[ECO "E71"]
[WhiteElo "2532"]
[BlackElo "2153"]
[Annotator "ChessBase"]
[PlyCount "57"]
[EventDate "2021.04.19"]
[EventType "swiss"]
[EventCountry "ROU"]
[SourceTitle "playchess.com"]
[Source "ChessBase"]
[SourceQuality "1"]
[TimeControl "5400+30"]

1. d4 {[%emt 0:00:00]} Nf6 {[%emt 0:00:00]} 2. c4 {[%emt 0:00:00]} g6 {[%emt 0:00:00]} 3. Nc3 {[%emt 0:00:00]} Bg7 {[%emt 0:00:00]} 4. e4 {[%emt 0:00:00]} d6 {[%emt 0:00:00]} 5. h3 {[%emt 0:00:00]} O-O {[%emt 0:00:34]} 6. Be3 {[%emt 0:00:00]} e5 {[%emt 0:00:52]} 7. d5 {[%emt 0:00:00]} a5 {[%emt 0:03:20]} 8. g4 {[%emt 0:00:10]} Na6 {[%emt 0:01:54]} 9. Nge2 {[%emt 0:00:05]} Nd7 {[%emt 0:04:42]} 10. Ng3 {[%emt 0:00:32]} Ndc5 {[%emt 0:01:12]} 11. Be2 {[%emt 0:00:48]} c6 {[%emt 0:01:25]} 12. h4 {[%emt 0:00:18]} f5 {[%emt 0:11:13]} 13. exf5 {[%emt 0:01:16]} gxf5 {[%emt 0:00:07]} 14. gxf5 {[%emt 0:02:37]} Bxf5 {[%emt 0:00:17]} 15. Nxf5 {[%emt 0:01:17]} Rxf5 {[%emt 0:00:07]} 16. Qd2 {[%emt 0:02:48]} Kh8 {[%emt 0:04:10]} 17. O-O-O {[%emt 0:05:26]} e4 {[%emt 0:05:35]} 18. Rhg1 {[%emt 0:08:16]} Be5 {[%emt 0:07:40]} 19. Rg4 {[%emt 0:03:11]} cxd5 {[%emt 0:21:24]} 20. Nxd5 {[%emt 0:16:12]} Qe8 {[%emt 0:11:36]} 21. Kb1 {[%emt 0:08:02]} b6 {[%emt 0:08:57]} 22. Rdg1 {[%emt 0:04:59]} Rb8 {[%emt 0:06:49]} 23. h5 {[%emt 0:08:05]} Qf7 {[%emt 0:07:28]} 24. h6 {[%emt 0:01:15]} Ne6 {[%emt 0:01:19]} 25. Rxe4 {[%emt 0:03:50]} Nac5 {[%emt 0:00:43]} 26. Reg4 {[%emt 0:00:34]} b5 {[%emt 0:00:27]} 27. cxb5 {[%emt 0:01:00]} Rxf2 {[%emt 0:00:50]} 28. Bxf2 {[%emt 0:01:13]} Qxf2 {[%emt 0:00:03]} 29. Ne7 {[%emt 0:00:36]} 1-0

[Event "ROU-ch Open 2021"]
[Site "Iasi"]
[Date "2021.04.23"]
[Round "7.10"]
[White "Stepanencu, Nicodim-Cosmin"]
[Black "Filip, Lucian-Ioan"]
[Result "1/2-1/2"]
[ECO "B40"]
[WhiteElo "2104"]
[BlackElo "2442"]
[Annotator "NA"]
[PlyCount "35"]
[EventDate "2021.04.19"]
[EventType "swiss"]
[EventCountry "ROU"]
[SourceTitle "playchess.com"]
[Source "ChessBase"]
[SourceQuality "1"]
[TimeControl "5400+30"]

1. e4 {[%emt 0:00:00]} c5 {[%emt 0:00:00]} 2. Nf3 {[%emt 0:00:00]} e6 {[%emt 0:00:00]} 3. b3 {[%emt 0:00:00]} a6 {[%emt 0:00:00]} 4. Bb2 {[%emt 0:00:00]} Nc6 {[%emt 0:00:00]} 5. c4 {[%emt 0:00:00]} Qc7 {[%emt 0:00:00]} 6. g3 {[%emt 0:03:15]} Nf6 {[%emt 0:00:32]} 7. Qe2 {[%emt 0:00:48]} b5 {[%emt 0:05:41]} 8. d3 {[%emt 0:10:13]} bxc4 {[%emt 0:05:32]} 9. dxc4 {[%emt 0:00:28]} Bb7 {[%emt 0:16:01]} 10. Bg2 {[%emt 0:03:16]} e5 {[%emt 0:06:31]} 11. Nc3 {[%emt 0:03:04]} Nd4 {[%emt 0:03:46]} 12. Qd3 {[%emt 0:03:28]} Be7 {[%emt 0:00:00]} 13. O-O {[%emt 0:00:46]} d6 {[%emt 0:00:46]} 14. Ne1 {[%emt 0:05:26]} O-O {[%emt 0:03:00]} 15. Nc2 {[%emt 0:02:11]} Rae8 {[%emt 0:15:45]} 16. Rae1 {[%emt 0:06:22]} Qb8 {[%emt 0:03:27]} 17. Ne3 {[%emt 0:05:03]} Bd8 {[%emt 0:00:18]} 18. Bc1 {[%emt 0:15:21]} 1/2-1/2

[Event "ROU-ch Open 2021"]
[Site "Iasi"]
[Date "2021.04.23"]
[Round "7.11"]
[White "Antonica, Dragos-Andrei"]
[Black "Filip, Andrei (L.)"]
[Result "1/2-1/2"]
[ECO "A73"]
[WhiteElo "2291"]
[BlackElo "2168"]
[Annotator "NA"]
[PlyCount "65"]
[EventDate "2021.04.19"]
[EventType "swiss"]
[EventCountry "ROU"]
[SourceTitle "playchess.com"]
[Source "ChessBase"]
[SourceQuality "1"]
[TimeControl "5400+30"]

1. d4 {[%emt 0:00:00]} Nf6 {[%emt 0:00:00]} 2. c4 {[%emt 0:00:00]} e6 {[%emt 0:00:00]} 3. Nc3 {[%emt 0:00:00]} c5 {[%emt 0:00:00]} 4. d5 {[%emt 0:00:00]} exd5 {[%emt 0:00:00]} 5. cxd5 {[%emt 0:00:01]} d6 {[%emt 0:00:06]} 6. Nf3 {[%emt 0:00:01]} g6 {[%emt 0:00:18]} 7. Nd2 {[%emt 0:00:02]} Nbd7 {[%emt 0:01:52]} 8. e4 {[%emt 0:00:12]} Bg7 {[%emt 0:01:59]} 9. Be2 {[%emt 0:00:03]} O-O {[%emt 0:01:51]} 10. O-O {[%emt 0:00:03]} Ne5 {[%emt 0:29:43]} 11. h3 {[%emt 0:02:58]} g5 {[%emt 0:19:58]} 12. Nc4 {[%emt 0:17:10]} Nxc4 {[%emt 0:00:00]} 13. Bxc4 {[%emt 0:00:16]} g4 {[%emt 0:00:00]} 14. Bg5 {[%emt 0:19:39]} gxh3 {[%emt 0:03:23]} 15. Qf3 {[%emt 0:07:22]} hxg2 {[%emt 0:01:12]} 16. Rfe1 {[%emt 0:03:42]} h6 {[%emt 0:11:34]} 17. Bh4 {[%emt 0:01:54]} b5 {[%emt 0:04:54]} 18. Bd3 {[%emt 0:21:10]} c4 {[%emt 0:02:58]} 19. Bc2 {[%emt 0:02:59]} b4 {[%emt 0:00:50]} 20. e5 {[%emt 0:03:09]} Bg4 {[%emt 0:01:46]} 21. Qg3 {[%emt 0:00:41]} dxe5 {[%emt 0:00:38]} 22. Ne4 {[%emt 0:01:56]} h5 {[%emt 0:01:52]} 23. Qxg2 {[%emt 0:09:50]} Qb6 {[%emt 0:03:00]} 24. Nxf6+ {[%emt 0:03:02]} Bxf6 {[%emt 0:00:06]} 25. Qe4 {[%emt 0:00:49]} Rfe8 {[%emt 0:01:23]} 26. Qh7+ {[%emt 0:02:08]} Kf8 {[%emt 0:00:00]} 27. d6 {[%emt 0:00:56]} Qxd6 {[%emt 0:02:47]} 28. Qh6+ {[%emt 0:01:39]} Ke7 {[%emt 0:00:09]} 29. Rad1 {[%emt 0:00:50]} Bxd1 {[%emt 0:00:18]} 30. Rxd1 {[%emt 0:00:15]} Qxd1+ {[%emt 0:01:58]} 31. Bxd1 {[%emt 0:00:05]} Bxh4 {[%emt 0:00:06]} 32. Qxh5 {[%emt 0:01:07]} Bf6 {[%emt 0:00:11]} 33. Qf3 {[%emt 0:00:16]} 1/2-1/2

[Event "ROU-ch Open 2021"]
[Site "Iasi"]
[Date "2021.04.23"]
[Round "7.12"]
[White "Nevednichy, Vladislav"]
[Black "Ignat, Matei-Marius"]
[Result "1/2-1/2"]
[ECO "C17"]
[WhiteElo "2533"]
[BlackElo "1978"]
[Annotator "ChessBase"]
[PlyCount "80"]
[EventDate "2021.04.19"]
[EventType "swiss"]
[EventCountry "ROU"]
[SourceTitle "playchess.com"]
[Source "ChessBase"]
[SourceQuality "1"]
[TimeControl "5400+30"]

1. e4 {[%emt 0:00:00]} e6 {[%emt 0:00:00]} 2. d4 {[%emt 0:00:07]} d5 {[%emt 0:00:00]} 3. Nc3 {[%emt 0:02:17]} Bb4 {[%emt 0:00:00]} 4. e5 {[%emt 0:01:19]} c5 {[%emt 0:00:05]} 5. Bd2 {[%emt 0:01:18]} Ne7 {[%emt 0:18:34]} 6. a3 {[%emt 0:01:08]} Bxc3 {[%emt 0:00:52]} 7. Bxc3 {[%emt 0:00:02]} b6 {[%emt 0:07:07]} 8. b4 {[%emt 0:08:24]} Nbc6 {[%emt 0:08:30]} 9. Nf3 {[%emt 0:03:05]} Nf5 {[%emt 0:02:57]} 10. dxc5 {[%emt 0:19:02]} bxc5 {[%emt 0:08:57]} 11. b5 {[%emt 0:00:05]} Nb8 {[%emt 0:02:01]} 12. Bd3 {[%emt 0:03:47]} O-O {[%emt 0:04:14]} 13. O-O {[%emt 0:00:25]} a6 {[%emt 0:02:57]} 14. a4 {[%emt 0:01:49]} Bb7 {[%emt 0:06:06]} 15. Qe2 {[%emt 0:04:16]} Nh4 {[%emt 0:07:03]} 16. Nxh4 {[%emt 0:12:23]} Qxh4 {[%emt 0:00:23]} 17. bxa6 {[%emt 0:00:24]} Bxa6 {[%emt 0:14:00]} 18. Bxa6 {[%emt 0:00:59]} Rxa6 {[%emt 0:00:53]} 19. a5 {[%emt 0:03:20]} c4 {[%emt 0:02:11]} 20. Rfb1 {[%emt 0:11:40]} Nc6 {[%emt 0:00:21]} 21. Rb7 {[%emt 0:01:53]} Qd8 {[%emt 0:02:38]} 22. h3 {[%emt 0:13:29]} Qa8 {[%emt 0:01:16]} 23. Rab1 {[%emt 0:03:01]} Nxa5 {[%emt 0:06:53]} 24. Bxa5 {[%emt 0:00:04]} Rxa5 {[%emt 0:00:02]} 25. Kh2 {[%emt 0:00:08]} Ra7 {[%emt 0:00:18]} 26. R7b6 {[%emt 0:00:05]} Ra1 {[%emt 0:00:56]} 27. R1b4 {[%emt 0:00:47]} h6 {[%emt 0:01:19]} 28. f4 {[%emt 0:02:16]} Qc8 {[%emt 0:02:40]} 29. Qf2 {[%emt 0:02:15]} Qa8 {[%emt 0:00:15]} 30. f5 {[%emt 0:02:30]} exf5 {[%emt 0:00:31]} 31. Qd4 {[%emt 0:00:31]} Ra5 {[%emt 0:00:53]} 32. e6 {[%emt 0:00:04]} Qe8 {[%emt 0:00:30]} 33. Qe5 {[%emt 0:01:55]} fxe6 {[%emt 0:00:32]} 34. Rb8 {[%emt 0:01:26]} Qc6 {[%emt 0:00:32]} 35. R4b6 {[%emt 0:00:30]} Qc5 {[%emt 0:00:26]} 36. Qxe6+ {[%emt 0:00:42]} Kh7 {[%emt 0:00:32]} 37. Qg6+ {[%emt 0:00:09]} Kh8 {[%emt 0:00:06]} 38. R8b7 {[%emt 0:00:45]} Qd4 {[%emt 0:00:54]} 39. Qxh6+ {[%emt 0:00:37]} gxh6 {[%emt 0:00:09]} 40. Rxh6+ {[%emt 0:00:01]} Kg8 {[%emt 0:00:13]} 1/2-1/2